[Event "Nové Hrady - Open"]
[Site "Nové Hrady, Czech Republic"]
[Date "2024.08.12"]
[Round "2.10"]
[White "Hrbková, Johana"]
[Black "Valiyev, Adil"]
[Result "0-1"]
[TimeControl "2x90min+30s"]
[WhiteFideId "23709146"]
[BlackFideId "23752246"]
[WhiteElo "1607"]
[BlackElo "1469"]

1. e4 {[%clk 01:30:57]} {[%emt 00:00:04]} e5 {[%clk 01:30:46]} {[%emt
00:00:15]} 2. Nc3 {[%clk 01:31:01]} {[%emt 00:00:25]} Nf6 {[%clk 01:30:53]}
{[%emt 00:00:23]} 3. f4 {[%clk 01:31:22]} {[%emt 00:00:08]} d6 {[%clk
01:30:30]} {[%emt 00:00:53]} 4. Nf3 {[%clk 01:29:36]} {[%emt 00:02:17]} Nc6
{[%clk 01:30:18]} {[%emt 00:00:43]} 5. Bb5 {[%clk 01:29:04]} {[%emt 00:01:01]}
Bd7 {[%clk 01:29:31]} {[%emt 00:01:16]} 6. d3 {[%clk 01:27:20]} {[%emt
00:02:15]} Be7 {[%clk 01:26:13]} {[%emt 00:03:47]} 7. Bxc6 {[%clk 01:26:45]}
{[%emt 00:01:07]} bxc6 {[%clk 01:24:55]} {[%emt 00:01:48]} 8. fxe5 {[%clk
01:26:46]} {[%emt 00:00:27]} dxe5 {[%clk 01:25:17]} {[%emt 00:00:09]} 9. Nxe5
{[%emt 00:01:41]} Bd6 {[%clk 01:24:30]} {[%emt 00:00:04]} 10. Nxd7 {[%clk
01:24:08]} {[%emt 00:03:10]} Qxd7 {[%clk 01:24:48]} {[%emt 00:00:12]} 11. d4
{[%clk 01:21:29]} {[%emt 00:03:10]} Bb4 {[%clk 01:24:27]} {[%emt 00:00:50]} 12.
Qd3 {[%clk 01:19:25]} {[%emt 00:02:34]} Rd8 {[%clk 01:21:56]} {[%emt 00:03:01]}
13. a3 {[%clk 01:16:38]} {[%emt 00:03:17]} Ba5 {[%clk 01:20:49]} {[%emt
00:01:37]} 14. Be3 {[%clk 01:13:22]} {[%emt 00:03:46]} O-O {[%clk 00:51:49]}
{[%emt 00:29:30]} 15. O-O {[%clk 01:12:12]} {[%emt 00:01:38]} Bxc3 {[%clk
00:51:13]} {[%emt 00:01:08]} 16. bxc3 {[%clk 01:12:08]} {[%emt 00:00:34]} Rfe8
{[%clk 00:50:34]} {[%emt 00:01:07]} 17. e5 {[%clk 01:07:13]} {[%emt 00:05:27]}
Nd5 {[%clk 00:50:09]} {[%emt 00:00:54]} 18. Bg5 {[%clk 01:05:24]} {[%emt
00:02:19]} Ne7 {[%clk 00:45:07]} {[%emt 00:05:33]} 19. Rf3 {[%clk 01:01:21]}
{[%emt 00:04:32]} h6 {[%clk 00:43:29]} {[%emt 00:02:08]} 20. Bd2 {[%clk
00:57:11]} {[%emt 00:04:41]} Ng6 {[%clk 00:41:36]} {[%emt 00:02:23]} 21. Raf1
{[%clk 00:55:46]} {[%emt 00:01:55]} Re7 {[%clk 00:40:05]} {[%emt 00:01:59]} 22.
Be1 {[%clk 00:50:52]} {[%emt 00:05:26]} Qe6 {[%clk 00:37:57]} {[%emt 00:02:38]}
23. Rf5 {[%clk 00:39:06]} {[%emt 00:12:16]} c5 {[%clk 00:35:43]} {[%emt
00:02:44]} 24. h4 {[%clk 00:38:26]} {[%emt 00:01:09]} Red7 {[%clk 00:32:40]}
{[%emt 00:03:34]} 25. Qf3 {[%clk 00:33:20]} {[%emt 00:05:35]} cxd4 {[%clk
00:30:39]} {[%emt 00:02:31]} 26. cxd4 {[%clk 00:32:46]} {[%emt 00:01:04]} Rxd4
{[%clk 00:30:23]} {[%emt 00:00:46]} 27. Qh3 {[%clk 00:21:54]} {[%emt 00:11:23]}
Nxe5 {[%clk 00:26:24]} {[%emt 00:04:28]} 28. Bc3 {[%clk 00:20:13]} {[%emt
00:02:12]} R4d5 {[%clk 00:25:41]} {[%emt 00:01:13]} 29. Re1 {[%clk 00:14:27]}
{[%emt 00:06:15]} Qb6+ {[%clk 00:23:48]} {[%emt 00:02:23]} 30. Kh1 {[%clk
00:12:36]} {[%emt 00:02:13]} Ng6 {[%clk 00:22:51]} {[%emt 00:01:35]} 31. Rxd5
{[%clk 00:11:33]} {[%emt 00:01:34]} Rxd5 {[%clk 00:22:57]} {[%emt 00:00:24]} 32.
Re8+ {[%clk 00:10:32]} {[%emt 00:01:31]} Kh7 {[%clk 00:22:40]} {[%emt
00:00:45]} 33. h5 {[%clk 00:09:23]} {[%emt 00:01:40]} Nf4 {[%clk 00:17:38]}
{[%emt 00:05:31]} 34. Qg4 {[%clk 00:05:51]} {[%emt 00:04:03]} Rxh5+ {[%clk
00:17:56]} {[%emt 00:00:12]} 35. Qxh5 {[%clk 00:04:23]} {[%emt 00:01:59]} Nxh5
{[%clk 00:18:10]} {[%emt 00:00:16]} 0-1

[Event "Nové Hrady - Open"]
[Site "Nové Hrady, Czech Republic"]
[Date "2024.08.13"]
[Round "3.1"]
[White "Žilavý, Jan"]
[Black "Hrbek, Jáchym"]
[Result "0-1"]
[TimeControl "2x90min+30s"]
[WhiteFideId "350141"]
[BlackFideId "23709138"]
[WhiteElo "2127"]
[BlackElo "1996"]

1. d4 {[%clk 01:30:55]} {[%emt 00:00:05]} d5 {[%clk 01:30:48]} {[%emt
00:00:13]} 2. c4 {[%clk 01:31:18]} {[%emt 00:00:07]} e6 {[%clk 01:30:51]}
{[%emt 00:00:27]} 3. Nc3 {[%clk 01:31:37]} {[%emt 00:00:12]} c5 {[%clk
01:30:54]} {[%emt 00:00:26]} 4. cxd5 {[%clk 01:31:01]} {[%emt 00:01:06]} cxd4
{[%clk 01:30:39]} {[%emt 00:00:43]} 5. Qxd4 {[%clk 01:29:22]} {[%emt 00:02:10]}
Nc6 {[%clk 01:30:39]} {[%emt 00:00:30]} 6. Qa4 {[%clk 01:23:58]} {[%emt
00:05:55]} exd5 {[%clk 01:30:39]} {[%emt 00:00:28]} 7. Nf3 {[%clk 01:23:14]}
{[%emt 00:01:15]} Bb4 {[%clk 01:26:16]} {[%emt 00:04:52]} 8. Bd2 {[%clk
01:21:25]} {[%emt 00:02:21]} Nf6 {[%clk 01:22:29]} {[%emt 00:04:17]} 9. a3
{[%clk 01:20:37]} {[%emt 00:01:18]} Bc5 {[%clk 01:13:36]} {[%emt 00:09:22]} 10.
b4 {[%clk 01:16:49]} {[%emt 00:04:18]} Bb6 {[%clk 01:12:58]} {[%emt 00:01:07]}
11. Bg5 {[%clk 01:14:59]} {[%emt 00:02:21]} h6 {[%clk 01:06:44]} {[%emt
00:06:44]} 12. Bh4 {[%clk 01:12:02]} {[%emt 00:03:28]} g5 {[%clk 00:59:26]}
{[%emt 00:07:48]} 13. Bg3 {[%clk 01:11:34]} {[%emt 00:00:58]} O-O {[%clk
00:50:57]} {[%emt 00:08:59]} 14. Rd1 {[%clk 01:03:46]} {[%emt 00:08:17]} Qe7
{[%clk 00:46:06]} {[%emt 00:05:21]} 15. Nb5 {[%clk 01:00:20]} {[%emt 00:03:56]}
a6 {[%clk 00:42:07]} {[%emt 00:04:30]} 16. Nbd4 {[%clk 00:58:52]} {[%emt
00:01:58]} Nxd4 {[%clk 00:38:33]} {[%emt 00:04:04]} 17. Nxd4 {[%clk 00:59:14]}
{[%emt 00:00:07]} Qe4 {[%clk 00:38:26]} {[%emt 00:00:36]} 18. f3 {[%clk
00:50:17]} {[%emt 00:09:29]} Qe3 {[%clk 00:37:46]} {[%emt 00:01:09]} 19. Rd3
{[%clk 00:49:20]} {[%emt 00:01:27]} Qc1+ {[%clk 00:36:29]} {[%emt 00:01:45]} 20.
Qd1 {[%clk 00:49:02]} {[%emt 00:00:50]} Qb2 {[%clk 00:29:56]} {[%emt 00:07:02]}
21. e3 {[%clk 00:30:31]} {[%emt 00:19:02]} Re8 {[%clk 00:26:32]} {[%emt
00:03:54]} 22. Be2 {[%clk 00:30:03]} {[%emt 00:00:58]} Bxd4 {[%clk 00:26:39]}
{[%emt 00:00:23]} 23. exd4 {[%clk 00:30:16]} {[%emt 00:00:17]} Bf5 {[%clk
00:26:47]} {[%emt 00:00:22]} 24. Rd2 {[%clk 00:27:20]} {[%emt 00:03:27]} Qxa3
{[%clk 00:26:55]} {[%emt 00:00:22]} 25. h4 {[%clk 00:24:52]} {[%emt 00:02:57]}
Nh5 {[%clk 00:23:15]} {[%emt 00:04:10]} 26. Be5 {[%clk 00:23:08]} {[%emt
00:02:14]} Rxe5 {[%clk 00:18:15]} {[%emt 00:05:31]} 27. dxe5 {[%clk 00:22:44]}
{[%emt 00:00:53]} Ng3 {[%clk 00:18:25]} {[%emt 00:00:19]} 28. Kf2 {[%clk
00:20:16]} {[%emt 00:02:59]} Nxh1+ {[%clk 00:17:01]} {[%emt 00:01:54]} 29. Qxh1
{[%clk 00:20:39]} {[%emt 00:00:06]} Qxb4 {[%clk 00:17:14]} {[%emt 00:00:18]} 30.
Rxd5 {[%clk 00:20:37]} {[%emt 00:00:31]} Qxh4+ {[%clk 00:17:17]} {[%emt
00:00:27]} 31. Qxh4 {[%clk 00:21:03]} {[%emt 00:00:04]} gxh4 {[%clk 00:17:38]}
{[%emt 00:00:10]} 32. Rd4 {[%clk 00:20:33]} {[%emt 00:01:00]} a5 {[%clk
00:14:29]} {[%emt 00:03:39]} 33. Bb5 {[%emt 00:07:48]} Rc8 {[%clk 00:12:05]}
{[%emt 00:01:14]} 34. Rxh4 {[%clk 00:10:28]} {[%emt 00:04:57]} Rc5 {[%clk
00:12:03]} {[%emt 00:00:31]} 35. Be2 {[%clk 00:10:29]} {[%emt 00:00:29]} Kg7
{[%emt 00:03:41]} 36. g4 {[%clk 00:08:44]} {[%emt 00:01:42]} Bc2 {[%clk
00:09:34]} {[%emt 00:00:21]} 37. f4 {[%clk 00:09:04]} {[%emt 00:00:11]} b5
{[%clk 00:09:45]} {[%emt 00:00:18]} 38. Ke3 {[%clk 00:08:54]} {[%emt 00:00:40]}
b4 {[%clk 00:07:25]} {[%emt 00:02:50]} 39. Kd4 {[%clk 00:07:49]} {[%emt
00:01:35]} Rc8 {[%clk 00:07:31]} {[%emt 00:00:24]} 40. Ba6 {[%clk 00:02:06]}
{[%emt 00:06:14]} Rd8+ {[%emt 00:01:50]} 0-1

[Event "Nové Hrady - Open"]
[Site "Nové Hrady, Czech Republic"]
[Date "2024.08.13"]
[Round "3.2"]
[White "Kaiser, Richard"]
[Black "Dudek, Vojtěch"]
[Result "1/2-1/2"]
[TimeControl "2x90min+30s"]
[WhiteFideId "4651286"]
[BlackFideId "398780"]
[WhiteElo "2019"]
[BlackElo "2117"]

1. d4 {[%clk 01:30:57]} {[%emt 00:00:03]} Nf6 {[%clk 01:30:48]} {[%emt
00:00:11]} 2. c4 {[%clk 01:31:13]} {[%emt 00:00:15]} c5 {[%clk 01:30:09]}
{[%emt 00:01:09]} 3. d5 {[%clk 01:31:39]} {[%emt 00:00:05]} b5 {[%clk
01:30:17]} {[%emt 00:00:22]} 4. cxb5 {[%clk 01:31:33]} {[%emt 00:00:36]} a6
{[%clk 01:30:35]} {[%emt 00:00:11]} 5. b6 {[%clk 01:31:05]} {[%emt 00:00:59]}
g6 {[%clk 01:30:26]} {[%emt 00:00:38]} 6. Nc3 {[%clk 01:31:23]} {[%emt
00:00:13]} Bg7 {[%clk 01:30:44]} {[%emt 00:00:10]} 7. Nf3 {[%clk 01:31:33]}
{[%emt 00:00:21]} O-O {[%clk 01:30:44]} {[%emt 00:00:29]} 8. g3 {[%clk
01:30:25]} {[%emt 00:01:39]} d6 {[%clk 01:30:09]} {[%emt 00:01:03]} 9. Bg2
{[%clk 01:30:35]} {[%emt 00:00:22]} Qxb6 {[%clk 01:23:31]} {[%emt 00:07:08]} 10.
O-O {[%clk 01:29:56]} {[%emt 00:01:09]} a5 {[%clk 01:23:22]} {[%emt 00:00:39]}
11. Re1 {[%clk 01:28:06]} {[%emt 00:02:20]} Nbd7 {[%clk 01:21:35]} {[%emt
00:02:17]} 12. h3 {[%clk 01:06:11]} {[%emt 00:22:26]} Ba6 {[%clk 01:14:42]}
{[%emt 00:07:22]} 13. Rb1 {[%clk 01:02:35]} {[%emt 00:04:06]} h6 {[%clk
01:06:43]} {[%emt 00:08:29]} 14. b3 {[%clk 00:57:55]} {[%emt 00:05:11]} Qa7
{[%clk 01:01:08]} {[%emt 00:06:03]} 15. Bb2 {[%clk 00:52:34]} {[%emt 00:05:52]}
c4 {[%clk 00:42:51]} {[%emt 00:18:47]} 16. bxc4 {[%clk 00:45:23]} {[%emt
00:07:41]} Bxc4 {[%clk 00:38:59]} {[%emt 00:04:21]} 17. Nd2 {[%clk 00:39:09]}
{[%emt 00:06:44]} Ba6 {[%clk 00:36:48]} {[%emt 00:02:42]} 18. Nb3 {[%clk
00:38:47]} {[%emt 00:00:52]} Nh5 {[%clk 00:29:04]} {[%emt 00:08:15]} 19. e3
{[%clk 00:30:02]} {[%emt 00:09:14]} Ne5 {[%clk 00:23:51]} {[%emt 00:05:42]} 20.
Ne2 {[%clk 00:14:52]} {[%emt 00:15:42]} a4 {[%clk 00:15:44]} {[%emt 00:08:37]}
21. Bd4 {[%clk 00:14:28]} {[%emt 00:00:53]} Qd7 {[%clk 00:10:58]} {[%emt
00:05:16]} 22. Nbc1 {[%clk 00:13:16]} {[%emt 00:01:42]} Rfb8 {[%clk 00:04:19]}
{[%emt 00:07:09]} 23. Nc3 {[%clk 00:13:28]} {[%emt 00:00:18]} Rxb1 {[%clk
00:04:16]} {[%emt 00:00:33]} 24. Nxb1 {[%clk 00:13:53]} {[%emt 00:00:05]} Nc4
{[%clk 00:03:42]} {[%emt 00:01:04]} 25. Bxg7 {[%clk 00:13:56]} {[%emt
00:00:26]} Nxg7 {[%clk 00:03:42]} {[%emt 00:00:30]} 26. Nd3 {[%clk 00:13:11]}
{[%emt 00:01:15]} Rb8 {[%clk 00:03:40]} {[%emt 00:00:32]} 27. Qc1 {[%clk
00:10:36]} {[%emt 00:03:06]} Qc8 {[%clk 00:02:51]} {[%emt 00:01:20]} 28. Bf1
{[%clk 00:08:00]} {[%emt 00:03:06]} e6 {[%clk 00:01:48]} {[%emt 00:01:33]} 29.
e4 {[%clk 00:07:19]} {[%emt 00:01:10]} exd5 {[%clk 00:01:38]} {[%emt 00:00:39]}
30. exd5 {[%clk 00:07:21]} {[%emt 00:00:29]} Nf5 {[%clk 00:01:57]} {[%emt
00:00:11]} 31. Na3 {[%clk 00:06:37]} {[%emt 00:01:14]} Nxa3 {[%clk 00:01:09]}
{[%emt 00:01:17]} 32. Qxa3 {[%clk 00:07:04]} {[%emt 00:00:04]} Nd4 {[%clk
00:01:24]} {[%emt 00:00:15]} 33. Rc1 {[%clk 00:07:22]} {[%emt 00:00:12]} Qd7
{[%clk 00:01:05]} {[%emt 00:00:49]} 34. g4 {[%clk 00:05:23]} {[%emt 00:02:29]}
Nf3+ {[%clk 00:01:11]} {[%emt 00:00:24]} 35. Kh1 {[%clk 00:05:00]} {[%emt
00:00:53]} Bxd3 {[%clk 00:00:42]} {[%emt 00:01:00]} 36. Qxd3 {[%clk 00:04:19]}
{[%emt 00:01:08]} Ne5 {[%clk 00:01:10]} {[%emt 00:00:04]} 37. Qc3 {[%clk
00:04:23]} {[%emt 00:00:26]} Qb7 {[%clk 00:00:53]} {[%emt 00:00:47]} 38. f4
{[%clk 00:04:21]} {[%emt 00:00:32]} Nd7 {[%clk 00:01:16]} {[%emt 00:00:07]} 39.
Qc6 {[%clk 00:03:51]} {[%emt 00:01:00]} Nf6 {[%emt 00:01:15]} 40. Qxa4 {[%clk
00:03:23]} {[%emt 00:00:56]} Qxd5+ {[%clk 00:00:49]} {[%emt 00:00:14]} 41. Bg2
{[%clk 00:03:48]} {[%emt 00:00:05]} Qd2 {[%clk 00:00:47]} {[%emt 00:00:32]} 42.
Rd1 {[%clk 00:03:25]} {[%emt 00:00:54]} Qf2 {[%clk 00:01:14]} {[%emt 00:00:02]}
43. Qd4 {[%clk 00:03:27]} {[%emt 00:00:27]} Qxd4 {[%clk 00:00:35]} {[%emt
00:01:10]} 44. Rxd4 {[%clk 00:03:51]} {[%emt 00:00:06]} d5 {[%clk 00:00:33]}
{[%emt 00:00:32]} 45. a4 {[%clk 00:03:36]} {[%emt 00:00:45]} Rb1+ {[%clk
00:00:37]} {[%emt 00:00:26]} 46. Kh2 {[%clk 00:03:59]} {[%emt 00:00:08]} Ra1
{[%clk 00:00:35]} {[%emt 00:00:31]} 47. g5 {[%clk 00:02:52]} {[%emt 00:01:37]}
hxg5 {[%clk 00:01:03]} {[%emt 00:00:02]} 48. fxg5 {[%clk 00:03:18]} {[%emt
00:00:03]} Ne4 {[%clk 00:01:03]} {[%emt 00:00:31]} 49. Bxe4 {[%clk 00:03:39]}
{[%emt 00:00:09]} dxe4 {[%clk 00:01:32]} {[%emt 00:00:02]} 50. Rxe4 {[%clk
00:04:00]} {[%emt 00:00:08]} Kg7 {[%clk 00:01:46]} {[%emt 00:00:15]} 51. Kg3
{[%clk 00:04:06]} {[%emt 00:00:25]} Ra3+ {[%clk 00:02:10]} {[%emt 00:00:05]} 52.
Kg4 {[%clk 00:04:30]} {[%emt 00:00:06]} f5+ {[%clk 00:01:47]} {[%emt 00:00:54]}
53. gxf6+ {[%clk 00:04:55]} {[%emt 00:00:05]} Kxf6 {[%clk 00:02:15]} {[%emt
00:00:02]} 54. h4 {[%clk 00:05:12]} {[%emt 00:00:12]} Ra1 {[%clk 00:02:02]}
{[%emt 00:00:43]} 55. Kf4 {[%clk 00:04:46]} {[%emt 00:00:57]} Ra3 {[%clk
00:01:37]} {[%emt 00:00:55]} 56. Rb4 {[%clk 00:05:07]} {[%emt 00:00:09]} Rh3
{[%clk 00:01:30]} {[%emt 00:00:36]} 57. Rb6+ {[%clk 00:05:29]} {[%emt
00:00:09]} Kg7 {[%clk 00:01:58]} 58. Kg4 {[%clk 00:05:19]} {[%emt 00:00:40]}
Ra3 {[%clk 00:02:23]} {[%emt 00:00:05]} 59. Ra6 {[%clk 00:05:33]} {[%emt
00:00:17]} Ra1 {[%clk 00:02:49]} {[%emt 00:00:04]} 60. Kf4 {[%clk 00:05:19]}
{[%emt 00:00:43]} Rh1 {[%clk 00:03:08]} {[%emt 00:00:11]} 61. Kg5 {[%clk
00:04:45]} {[%emt 00:01:05]} Rg1+ {[%clk 00:03:35]} {[%emt 00:00:03]} 62. Kf4
{[%clk 00:05:00]} {[%emt 00:00:16]} Rh1 {[%clk 00:04:01]} {[%emt 00:00:02]} 63.
Kg5 {[%clk 00:05:00]} {[%emt 00:00:29]} 1/2-1/2

[Event "Nové Hrady - Open"]
[Site "Nové Hrady, Czech Republic"]
[Date "2024.08.13"]
[Round "3.3"]
[White "Šimůnek, Jakub Šimon"]
[Black "Šťastná, Martina"]
[Result "1-0"]
[TimeControl "2x90min+30s"]
[WhiteFideId "23709464"]
[BlackFideId "385123"]
[WhiteElo "2042"]
[BlackElo "1945"]

1. e4 {[%clk 01:30:57]} {[%emt 00:00:03]} e5 {[%clk 01:30:51]} {[%emt
00:00:09]} 2. Nf3 {[%clk 01:31:22]} {[%emt 00:00:05]} Nc6 {[%clk 01:31:16]}
{[%emt 00:00:06]} 3. Bb5 {[%clk 01:31:46]} {[%emt 00:00:05]} a6 {[%clk
01:31:40]} {[%emt 00:00:06]} 4. Ba4 {[%clk 01:32:12]} {[%emt 00:00:04]} Nf6
{[%clk 01:32:02]} {[%emt 00:00:08]} 5. d3 {[%clk 01:32:37]} {[%emt 00:00:06]}
b5 {[%clk 01:31:51]} {[%emt 00:00:40]} 6. Bb3 {[%clk 01:33:01]} {[%emt
00:00:07]} Be7 {[%clk 01:32:05]} {[%emt 00:00:15]} 7. a4 {[%clk 01:33:16]}
{[%emt 00:00:15]} Bb7 {[%clk 01:29:47]} {[%emt 00:02:47]} 8. O-O {[%clk
01:32:37]} {[%emt 00:01:10]} O-O {[%clk 01:28:44]} {[%emt 00:01:33]} 9. Nc3
{[%clk 01:32:19]} {[%emt 00:00:48]} b4 {[%clk 01:22:38]} {[%emt 00:06:37]} 10.
Nd5 {[%clk 01:32:42]} {[%emt 00:00:07]} a5 {[%clk 01:17:22]} {[%emt 00:05:45]}
11. Nxe7+ {[%clk 01:22:10]} {[%emt 00:11:02]} Qxe7 {[%clk 01:17:02]} {[%emt
00:00:50]} 12. Bg5 {[%clk 01:22:33]} {[%emt 00:00:07]} h6 {[%clk 01:13:43]}
{[%emt 00:03:49]} 13. Be3 {[%clk 01:19:29]} {[%emt 00:03:34]} Nd8 {[%clk
01:09:55]} {[%emt 00:04:18]} 14. Nh4 {[%clk 01:12:05]} {[%emt 00:07:54]} Nh7
{[%clk 00:48:59]} {[%emt 00:21:26]} 15. Ng6 {[%clk 01:09:57]} {[%emt 00:02:38]}
Qf6 {[%clk 00:48:09]} {[%emt 00:01:19]} 16. Nxf8 {[%clk 01:09:47]} {[%emt
00:00:40]} Nxf8 {[%clk 00:47:49]} {[%emt 00:00:51]} 17. f4 {[%clk 01:09:07]}
{[%emt 00:01:11]} exf4 {[%clk 00:43:20]} {[%emt 00:04:58]} 18. Rxf4 {[%clk
01:04:23]} {[%emt 00:05:13]} Qxb2 {[%clk 00:34:45]} {[%emt 00:09:06]} 19. Rb1
{[%clk 01:02:45]} {[%emt 00:02:08]} Qc3 {[%clk 00:34:08]} {[%emt 00:01:07]} 20.
Qh5 {[%clk 00:51:46]} {[%emt 00:11:29]} Nfe6 {[%clk 00:33:51]} {[%emt
00:00:47]} 21. Rg4 {[%clk 00:51:16]} {[%emt 00:01:00]} Kh7 {[%clk 00:32:46]}
{[%emt 00:01:35]} 22. Rf1 {[%clk 00:48:45]} {[%emt 00:03:01]} c6 {[%clk
00:27:50]} {[%emt 00:05:26]} 23. Bxe6 {[%clk 00:45:47]} {[%emt 00:03:28]} dxe6
{[%clk 00:26:05]} {[%emt 00:02:15]} 24. e5 {[%clk 00:44:21]} {[%emt 00:01:56]}
1-0

[Event "Nové Hrady - Open"]
[Site "Nové Hrady, Czech Republic"]
[Date "2024.08.13"]
[Round "3.4"]
[White "Steinbauer, Sebastián"]
[Black "Slabý, Matěj"]
[Result "1-0"]
[TimeControl "2x90min+30s"]
[WhiteFideId "399272"]
[BlackFideId "23734876"]
[WhiteElo "1990"]
[BlackElo "2020"]

1. e4 {[%clk 01:30:55]} {[%emt 00:00:05]} c6 {[%clk 01:30:52]} {[%emt
00:00:14]} 2. d4 {[%clk 01:31:22]} d5 {[%clk 01:31:18]} {[%emt 00:00:01]} 3.
exd5 {[%clk 01:31:50]} {[%emt 00:00:02]} cxd5 {[%clk 01:31:40]} {[%emt
00:00:07]} 4. c3 {[%clk 01:32:16]} {[%emt 00:00:05]} Nc6 {[%clk 01:31:54]}
{[%emt 00:00:17]} 5. Nf3 {[%clk 01:32:36]} {[%emt 00:00:10]} Qc7 {[%clk
01:32:11]} {[%emt 00:00:12]} 6. Bd3 {[%clk 01:32:40]} {[%emt 00:00:26]} Bg4
{[%clk 01:32:34]} {[%emt 00:00:07]} 7. Nbd2 {[%clk 01:33:06]} {[%emt 00:00:04]}
e6 {[%clk 01:32:28]} {[%emt 00:00:36]} 8. O-O {[%clk 01:33:29]} {[%emt
00:00:08]} Bd6 {[%clk 01:32:49]} {[%emt 00:00:09]} 9. h3 {[%clk 01:33:52]}
{[%emt 00:00:07]} Bh5 {[%clk 01:32:48]} {[%emt 00:00:30]} 10. Re1 {[%clk
01:34:08]} {[%emt 00:00:14]} Nge7 {[%clk 01:33:01]} {[%emt 00:00:16]} 11. Qb3
{[%clk 01:32:10]} {[%emt 00:02:29]} O-O-O {[%clk 01:29:19]} {[%emt 00:04:13]}
12. a4 {[%clk 01:31:22]} {[%emt 00:01:18]} Bg6 {[%clk 01:24:53]} {[%emt
00:04:55]} 13. Bf1 {[%clk 01:31:03]} {[%emt 00:00:49]} Na5 {[%clk 01:24:21]}
{[%emt 00:01:01]} 14. Qa2 {[%clk 01:25:42]} {[%emt 00:05:52]} h5 {[%clk
01:15:14]} {[%emt 00:09:37]} 15. b4 {[%clk 01:24:14]} {[%emt 00:01:58]} Nac6
{[%clk 01:15:39]} {[%emt 00:00:04]} 16. Ba3 {[%clk 01:24:12]} {[%emt 00:00:33]}
Kb8 {[%clk 01:00:44]} {[%emt 00:15:26]} 17. a5 {[%clk 01:23:13]} {[%emt
00:01:28]} Nc8 {[%clk 00:59:10]} {[%emt 00:02:03]} 18. b5 {[%clk 01:21:21]}
{[%emt 00:02:23]} N6e7 {[%clk 00:59:26]} {[%emt 00:00:14]} 19. c4 {[%clk
01:10:09]} {[%emt 00:11:42]} dxc4 {[%clk 00:49:35]} {[%emt 00:10:21]} 20. Nxc4
{[%clk 01:03:42]} {[%emt 00:06:57]} Bxa3 {[%clk 00:49:58]} {[%emt 00:00:07]} 21.
b6 {[%clk 00:43:54]} {[%emt 00:20:18]} axb6 {[%clk 00:49:48]} {[%emt 00:00:40]}
22. axb6 {[%clk 00:44:08]} {[%emt 00:00:15]} Nxb6 {[%clk 00:49:20]} {[%emt
00:00:58]} 23. Qxa3 {[%clk 00:44:36]} {[%emt 00:00:03]} Nc6 {[%clk 00:46:23]}
{[%emt 00:03:27]} 24. Nfe5 {[%clk 00:45:01]} {[%emt 00:00:05]} 1-0

[Event "Nové Hrady - Open"]
[Site "Nové Hrady, Czech Republic"]
[Date "2024.08.13"]
[Round "3.5"]
[White "Picek, Miroslav"]
[Black "Garabik, Marek"]
[Result "1-0"]
[TimeControl "2x90min+30s"]
[WhiteFideId "325198"]
[BlackFideId "23717742"]
[WhiteElo "1922"]
[BlackElo "1916"]

1. Nf3 {[%clk 01:30:56]} {[%emt 00:00:03]} d5 {[%clk 01:30:40]} {[%emt
00:00:22]} 2. g3 {[%clk 01:31:07]} {[%emt 00:00:18]} Nc6 {[%clk 01:30:59]}
{[%emt 00:00:12]} 3. d4 {[%clk 01:30:13]} {[%emt 00:01:23]} e6 {[%clk
01:30:53]} {[%emt 00:00:35]} 4. Bg2 {[%clk 01:29:34]} {[%emt 00:01:09]} Nf6
{[%clk 01:30:15]} {[%emt 00:01:08]} 5. O-O {[%clk 01:23:52]} {[%emt 00:06:12]}
Be7 {[%clk 01:28:20]} {[%emt 00:02:26]} 6. b3 {[%clk 01:23:36]} {[%emt
00:00:46]} O-O {[%clk 01:27:53]} {[%emt 00:00:56]} 7. Bb2 {[%clk 01:23:30]}
{[%emt 00:00:37]} Ne4 {[%clk 01:26:42]} {[%emt 00:01:41]} 8. Ne5 {[%clk
01:18:40]} {[%emt 00:05:19]} Nxe5 {[%clk 01:06:54]} {[%emt 00:20:19]} 9. dxe5
{[%clk 01:16:56]} {[%emt 00:02:14]} f5 {[%clk 01:03:41]} {[%emt 00:03:43]} 10.
Nd2 {[%clk 01:07:44]} {[%emt 00:09:42]} b6 {[%clk 00:57:55]} {[%emt 00:06:16]}
11. c4 {[%clk 01:02:55]} {[%emt 00:05:19]} c6 {[%clk 00:54:11]} {[%emt
00:04:14]} 12. cxd5 {[%clk 01:00:01]} {[%emt 00:03:24]} exd5 {[%clk 00:52:26]}
{[%emt 00:02:14]} 13. Nf3 {[%clk 00:43:01]} {[%emt 00:17:30]} Be6 {[%clk
00:50:08]} {[%emt 00:02:49]} 14. Nd4 {[%clk 00:42:13]} {[%emt 00:01:18]} Qd7
{[%clk 00:49:17]} {[%emt 00:01:21]} 15. f3 {[%clk 00:41:48]} {[%emt 00:00:54]}
Ng5 {[%clk 00:47:01]} {[%emt 00:02:47]} 16. h4 {[%clk 00:41:43]} {[%emt
00:00:35]} Nf7 {[%clk 00:47:29]} 17. f4 {[%clk 00:41:20]} {[%emt 00:00:53]}
Rac8 {[%clk 00:41:49]} {[%emt 00:06:11]} 18. Rc1 {[%clk 00:41:36]} {[%emt
00:00:14]} Bc5 {[%clk 00:38:01]} {[%emt 00:04:18]} 19. e3 {[%clk 00:39:54]}
{[%emt 00:02:12]} Bxd4 {[%clk 00:26:54]} {[%emt 00:11:37]} 20. exd4 {[%clk
00:40:16]} {[%emt 00:00:08]} Nd8 {[%clk 00:24:12]} {[%emt 00:03:12]} 21. Ba3
{[%clk 00:38:56]} {[%emt 00:01:49]} Re8 {[%clk 00:24:02]} {[%emt 00:00:41]} 22.
Rf3 {[%clk 00:38:23]} {[%emt 00:01:02]} Nb7 {[%clk 00:24:01]} {[%emt 00:00:32]}
23. Rfc3 {[%clk 00:38:41]} {[%emt 00:00:12]} Rc7 {[%clk 00:21:52]} {[%emt
00:02:39]} 24. Bf1 {[%clk 00:38:56]} {[%emt 00:00:15]} Rec8 {[%clk 00:18:05]}
{[%emt 00:04:17]} 25. Ba6 {[%clk 00:38:10]} {[%emt 00:01:16]} Re8 {[%clk
00:05:17]} {[%emt 00:13:17]} 26. Bxb7 {[%clk 00:37:28]} {[%emt 00:01:13]} Rxb7
{[%clk 00:05:14]} {[%emt 00:00:33]} 27. Rxc6 {[%clk 00:37:42]} {[%emt
00:00:15]} Rbb8 {[%clk 00:05:33]} {[%emt 00:00:12]} 28. Rc7 {[%clk 00:37:19]}
{[%emt 00:00:53]} Qb5 {[%clk 00:05:21]} {[%emt 00:00:42]} 29. Qh5 {[%clk
00:33:00]} {[%emt 00:04:49]} Qd3 {[%clk 00:04:59]} {[%emt 00:00:52]} 30. Rxg7+
{[%clk 00:32:53]} {[%emt 00:00:37]} 1-0